[Event "Late-Titled-Tuesday-Blitz-February-27-2024"]
[Site "Chess.com"]
[Date "2024.02.27"]
[Round "8"]
[White "lluiss"]
[Black "gxbg2000"]
[Result "1/2-1/2"]
[WhiteElo "2133"]
[BlackElo "1940"]
[TimeControl "180+1"]
[EndTime "15:28:39 PST"]
[Termination "Game drawn by repetition"]

1. e4 {[%clk 0:02:59.2]} 1... e5 {[%clk 0:02:21]} 2. Nf3 {[%clk 0:02:56.1]} 2...
Nc6 {[%clk 0:02:20.8]} 3. Bb5 {[%clk 0:02:54.9]} 3... d6 {[%clk 0:02:20.6]} 4.
d4 {[%clk 0:02:53.9]} 4... exd4 {[%clk 0:02:20.8]} 5. Nxd4 {[%clk 0:02:54.8]}
5... Bd7 {[%clk 0:02:20.8]} 6. Bxc6 {[%clk 0:02:54.5]} 6... bxc6 {[%clk
0:02:20.5]} 7. O-O {[%clk 0:02:54.5]} 7... c5 {[%clk 0:02:21.2]} 8. Ne2 {[%clk
0:02:51.2]} 8... Be7 {[%clk 0:02:21.1]} 9. Nbc3 {[%clk 0:02:48.7]} 9... Nf6
{[%clk 0:02:20.8]} 10. Ng3 {[%clk 0:02:48.8]} 10... O-O {[%clk 0:02:20.6]} 11.
h3 {[%clk 0:02:45.3]} 11... Re8 {[%clk 0:02:20.2]} 12. Re1 {[%clk 0:02:41.1]}
12... Qc8 {[%clk 0:02:20.3]} 13. Nd5 {[%clk 0:02:32.6]} 13... Nxd5 {[%clk
0:02:19.5]} 14. exd5 {[%clk 0:02:30.8]} 14... Bf6 {[%clk 0:02:19.2]} 15. Rxe8+
{[%clk 0:02:27.9]} 15... Qxe8 {[%clk 0:02:18.4]} 16. c3 {[%clk 0:02:28.1]} 16...
Qe5 {[%clk 0:02:13.9]} 17. Be3 {[%clk 0:02:25.5]} 17... Re8 {[%clk 0:02:13.1]}
18. Qd2 {[%clk 0:02:25.5]} 18... Qe7 {[%clk 0:01:57.6]} 19. Nh5 {[%clk
0:01:50.3]} 19... Be5 {[%clk 0:01:52.5]} 20. Bg5 {[%clk 0:01:46.4]} 20... f6
{[%clk 0:01:49.6]} 21. Be3 {[%clk 0:01:28.6]} 21... Qf7 {[%clk 0:01:48.3]} 22.
Nf4 {[%clk 0:01:27.2]} 22... g5 {[%clk 0:01:44.5]} 23. Nd3 {[%clk 0:01:17.7]}
23... g4 {[%clk 0:01:44.5]} 24. hxg4 {[%clk 0:01:08.7]} 24... Qxd5 {[%clk
0:01:31]} 25. Nxe5 {[%clk 0:01:06.2]} 25... Qxd2 {[%clk 0:01:27.7]} 26. Bxd2
{[%clk 0:01:04]} 26... fxe5 {[%clk 0:01:27.6]} 27. g5 {[%clk 0:00:59.2]} 27...
a5 {[%clk 0:01:25.3]} 28. b3 {[%clk 0:00:54.6]} 28... a4 {[%clk 0:01:23.7]} 29.
bxa4 {[%clk 0:00:52.4]} 29... Bxa4 {[%clk 0:01:23.1]} 30. Rb1 {[%clk 0:00:51.9]}
30... Bc6 {[%clk 0:01:21]} 31. Rb2 {[%clk 0:00:43.4]} 31... Kf7 {[%clk
0:01:20.6]} 32. f3 {[%clk 0:00:43.5]} 32... Ke6 {[%clk 0:01:20.7]} 33. Kf2
{[%clk 0:00:43.6]} 33... Kd5 {[%clk 0:01:20.2]} 34. Ke3 {[%clk 0:00:41.7]} 34...
Kc4 {[%clk 0:01:20.3]} 35. Rb1 {[%clk 0:00:38.6]} 35... Ra8 {[%clk 0:01:19.2]}
36. Rh1 {[%clk 0:00:38.2]} 36... Rxa2 {[%clk 0:01:04.1]} 37. Rxh7 {[%clk
0:00:38.1]} 37... e4 {[%clk 0:00:59.1]} 38. Rxc7 {[%clk 0:00:36.4]} 38... exf3
{[%clk 0:00:56.2]} 39. gxf3 {[%clk 0:00:34.3]} 39... Bd5 {[%clk 0:00:55.6]} 40.
g6 {[%clk 0:00:33.6]} 40... Ra1 {[%clk 0:00:55.1]} 41. g7 {[%clk 0:00:22.3]}
41... Rg1 {[%clk 0:00:54.5]} 42. Kf4 {[%clk 0:00:20.5]} 42... Kd3 {[%clk
0:00:51.1]} 43. Be3 {[%clk 0:00:19.1]} 43... Rg2 {[%clk 0:00:48.3]} 44. Rd7
{[%clk 0:00:07.3]} 44... Kxc3 {[%clk 0:00:46.8]} 45. Rxd6 {[%clk 0:00:07.3]}
45... Kc4 {[%clk 0:00:47.4]} 46. Rf6 {[%clk 0:00:06.5]} 46... Rxg7 {[%clk
0:00:45.8]} 47. Rf8 {[%clk 0:00:05.7]} 47... Re7 {[%clk 0:00:40.3]} 48. Rf6
{[%clk 0:00:05.5]} 48... Kd3 {[%clk 0:00:38.2]} 49. Bc1 {[%clk 0:00:05.1]} 49...
c4 {[%clk 0:00:38.3]} 50. Rd6 {[%clk 0:00:04.3]} 50... Kd4 {[%clk 0:00:37.8]}
51. Bb2+ {[%clk 0:00:04]} 51... Kc5 {[%clk 0:00:37.4]} 52. Ba3+ {[%clk 0:00:04]}
52... Kd4 {[%clk 0:00:37.5]} 53. Bb2+ {[%clk 0:00:04.2]} 53... c3 {[%clk
0:00:38]} 54. Bxc3+ {[%clk 0:00:04]} 54... Kc5 {[%clk 0:00:37.1]} 55. Rd8 {[%clk
0:00:02.2]} 55... Rc7 {[%clk 0:00:36.2]} 56. Be5 {[%clk 0:00:01.6]} 56... Rc6
{[%clk 0:00:35.3]} 57. Kg3 {[%clk 0:00:02.5]} 57... Kb4 {[%clk 0:00:30.8]} 58.
Bf4 {[%clk 0:00:03.4]} 58... Rc3 {[%clk 0:00:29.8]} 59. Rb8+ {[%clk 0:00:03.8]}
59... Kc4 {[%clk 0:00:29.3]} 60. Be5 {[%clk 0:00:03.2]} 60... Rxf3+ {[%clk
0:00:28.7]} 61. Kg4 {[%clk 0:00:04.1]} 61... Re3 {[%clk 0:00:27.9]} 62. Rc8+
{[%clk 0:00:03.5]} 62... Kd3 {[%clk 0:00:27.4]} 63. Bf4 {[%clk 0:00:04.4]} 63...
Re4 {[%clk 0:00:27.1]} 64. Kf5 {[%clk 0:00:04.8]} 64... Re1 {[%clk 0:00:26.7]}
65. Rd8 {[%clk 0:00:05.3]} 65... Kc4 {[%clk 0:00:26.1]} 66. Rc8+ {[%clk
0:00:05.6]} 66... Kd3 {[%clk 0:00:26]} 67. Rd8 {[%clk 0:00:06.2]} 67... Kc4
{[%clk 0:00:26]} 68. Rc8+ {[%clk 0:00:06.4]} 68... Kb5 {[%clk 0:00:26]} 69. Rb8+
{[%clk 0:00:06.2]} 69... Kc6 {[%clk 0:00:25.8]} 70. Rd8 {[%clk 0:00:07.1]} 70...
Bc4 {[%clk 0:00:25.2]} 71. Rd6+ {[%clk 0:00:07.6]} 71... Kc5 {[%clk 0:00:25.2]}
72. Rd8 {[%clk 0:00:08.2]} 72... Kb4 {[%clk 0:00:24.9]} 73. Rc8 {[%clk
0:00:08.6]} 73... Kb3 {[%clk 0:00:24.7]} 74. Rb8+ {[%clk 0:00:09.1]} 74... Kc2
{[%clk 0:00:22.6]} 75. Rc8 {[%clk 0:00:09.5]} 75... Kd3 {[%clk 0:00:22.7]} 76.
Rd8+ {[%clk 0:00:09.5]} 76... Kc2 {[%clk 0:00:22.5]} 77. Rc8 {[%clk 0:00:09.6]}
77... Kd3 {[%clk 0:00:22.4]} 78. Rd8+ {[%clk 0:00:09.8]} 78... Kc2 {[%clk
0:00:22.7]} 79. Rd2+ {[%clk 0:00:08.6]} 79... Kc3 {[%clk 0:00:22]} 80. Rd8
{[%clk 0:00:09.5]} 80... Kc2 {[%clk 0:00:21.9]} 1/2-1/2

[Event "Late-Titled-Tuesday-Blitz-February-27-2024"]
[Site "Chess.com"]
[Date "2024.02.27"]
[Round "8"]
[White "GHANDEEVAM2003"]
[Black "platy3"]
[Result "1-0"]
[WhiteElo "3060"]
[BlackElo "2951"]
[TimeControl "180+1"]
[EndTime "15:28:41 PST"]
[Termination "GHANDEEVAM2003 won by checkmate"]

1. c4 {[%clk 0:02:55.8]} 1... Nf6 {[%clk 0:02:59.3]} 2. Nc3 {[%clk 0:02:55.7]}
2... e5 {[%clk 0:02:57.2]} 3. Nf3 {[%clk 0:02:54.5]} 3... Nc6 {[%clk 0:02:57.2]}
4. d3 {[%clk 0:02:54]} 4... Bb4 {[%clk 0:02:53.5]} 5. Bd2 {[%clk 0:02:51.6]}
5... O-O {[%clk 0:02:52.4]} 6. g3 {[%clk 0:02:49.1]} 6... Bxc3 {[%clk
0:02:34.8]} 7. Bxc3 {[%clk 0:02:48.8]} 7... e4 {[%clk 0:02:35.5]} 8. Nd4 {[%clk
0:02:46.1]} 8... Re8 {[%clk 0:02:33.4]} 9. e3 {[%clk 0:02:20.3]} 9... Ne5 {[%clk
0:02:28.6]} 10. Qc2 {[%clk 0:02:00.4]} 10... d5 {[%clk 0:02:05.5]} 11. dxe4
{[%clk 0:01:54.5]} 11... dxe4 {[%clk 0:02:01.6]} 12. O-O-O {[%clk 0:01:54]}
12... Bg4 {[%clk 0:01:51.5]} 13. Rd2 {[%clk 0:01:46.7]} 13... Qe7 {[%clk
0:01:50.9]} 14. h3 {[%clk 0:01:46.7]} 14... Bd7 {[%clk 0:01:46.8]} 15. g4 {[%clk
0:01:46.9]} 15... c5 {[%clk 0:01:47]} 16. Nb5 {[%clk 0:01:27.4]} 16... Bc6
{[%clk 0:01:37.1]} 17. Be2 {[%clk 0:01:21.3]} 17... a6 {[%clk 0:01:22.2]} 18.
Bxe5 {[%clk 0:01:19.2]} 18... Qxe5 {[%clk 0:01:20.7]} 19. Nd6 {[%clk 0:01:19.6]}
19... Red8 {[%clk 0:01:15.1]} 20. Rhd1 {[%clk 0:01:19.9]} 20... Rd7 {[%clk
0:01:13]} 21. h4 {[%clk 0:01:08.9]} 21... Rad8 {[%clk 0:01:11.3]} 22. Nf5 {[%clk
0:00:58.5]} 22... h5 {[%clk 0:01:11.6]} 23. Ng3 {[%clk 0:00:45.5]} 23... hxg4
{[%clk 0:01:10.8]} 24. Rxd7 {[%clk 0:00:40.8]} 24... Rxd7 {[%clk 0:01:11]} 25.
Rd2 {[%clk 0:00:40.9]} 25... g6 {[%clk 0:01:09.1]} 26. Qd1 {[%clk 0:00:39.2]}
26... Kg7 {[%clk 0:01:03.2]} 27. a3 {[%clk 0:00:35.7]} 27... b5 {[%clk
0:00:59.1]} 28. Qb3 {[%clk 0:00:29.5]} 28... Rxd2 {[%clk 0:00:55.7]} 29. Kxd2
{[%clk 0:00:30.4]} 29... Qd6+ {[%clk 0:00:33.2]} 30. Ke1 {[%clk 0:00:30.4]}
30... b4 {[%clk 0:00:31.8]} 31. axb4 {[%clk 0:00:26.3]} 31... cxb4 {[%clk
0:00:32]} 32. Qc2 {[%clk 0:00:26.6]} 32... a5 {[%clk 0:00:29.6]} 33. b3 {[%clk
0:00:23]} 33... Qe5 {[%clk 0:00:29.4]} 34. Qd1 {[%clk 0:00:19.7]} 34... a4
{[%clk 0:00:25.5]} 35. bxa4 {[%clk 0:00:20.6]} 35... b3 {[%clk 0:00:26.1]} 36.
Qxb3 {[%clk 0:00:20.1]} 36... Qa1+ {[%clk 0:00:19.8]} 37. Bd1 {[%clk 0:00:19.4]}
37... Nd7 {[%clk 0:00:19.5]} 38. Ne2 {[%clk 0:00:18.4]} 38... Kh7 {[%clk
0:00:13.5]} 39. Qc3 {[%clk 0:00:15.4]} 39... Qb1 {[%clk 0:00:12.7]} 40. Qc1
{[%clk 0:00:11.6]} 40... Qb4+ {[%clk 0:00:10.5]} 41. Qc3 {[%clk 0:00:11.7]}
41... Qb1 {[%clk 0:00:10.7]} 42. Qc2 {[%clk 0:00:06.1]} 42... Qb4+ {[%clk
0:00:09.7]} 43. Kf1 {[%clk 0:00:06.4]} 43... Qe7 {[%clk 0:00:09.1]} 44. Nd4
{[%clk 0:00:06.1]} 44... Bb7 {[%clk 0:00:09.4]} 45. Bxg4 {[%clk 0:00:06.2]}
45... Ne5 {[%clk 0:00:09.9]} 46. Be2 {[%clk 0:00:06]} 46... Qxh4 {[%clk
0:00:10.5]} 47. Ke1 {[%clk 0:00:06.7]} 47... Qh1+ {[%clk 0:00:09.2]} 48. Kd2
{[%clk 0:00:07.1]} 48... Qa1 {[%clk 0:00:08.5]} 49. Qb3 {[%clk 0:00:06.7]} 49...
Bc8 {[%clk 0:00:05.5]} 50. c5 {[%clk 0:00:07]} 50... Kg7 {[%clk 0:00:03]} 51. c6
{[%clk 0:00:06.7]} 51... g5 {[%clk 0:00:02.5]} 52. Bd1 {[%clk 0:00:06.1]} 52...
f6 {[%clk 0:00:02.7]} 53. Qc3 {[%clk 0:00:06.1]} 53... Qa2+ {[%clk 0:00:02.8]}
54. Bc2 {[%clk 0:00:06.5]} 54... Nc4+ {[%clk 0:00:02.7]} 55. Ke1 {[%clk
0:00:06.3]} 55... Ne5 {[%clk 0:00:02.4]} 56. Bxe4 {[%clk 0:00:06.5]} 56... Ba6
{[%clk 0:00:03]} 57. Bc2 {[%clk 0:00:06]} 57... Qd5 {[%clk 0:00:02.6]} 58. c7
{[%clk 0:00:05.6]} 58... Qh1+ {[%clk 0:00:02.8]} 59. Kd2 {[%clk 0:00:06.3]}
59... Qf1 {[%clk 0:00:02.8]} 60. c8=Q {[%clk 0:00:04.6]} 60... Qxf2+ {[%clk
0:00:03.3]} 61. Kc1 {[%clk 0:00:05.5]} 61... Bxc8 {[%clk 0:00:03.9]} 62. Qc7+
{[%clk 0:00:05.8]} 62... Kg8 {[%clk 0:00:03.5]} 63. Qxc8+ {[%clk 0:00:05.7]}
63... Kf7 {[%clk 0:00:04.3]} 64. Qe6+ {[%clk 0:00:05.5]} 64... Kg7 {[%clk
0:00:04.3]} 65. Nf5+ {[%clk 0:00:06]} 65... Kf8 {[%clk 0:00:03.8]} 66. Qxf6+
{[%clk 0:00:06.2]} 66... Ke8 {[%clk 0:00:03.9]} 67. Qe7# {[%clk 0:00:06.4]} 1-0

[Event "Late-Titled-Tuesday-Blitz-February-27-2024"]
[Site "Chess.com"]
[Date "2024.02.27"]
[Round "8"]
[White "FernandoArauzAlonso"]
[Black "TheMagician"]
[Result "1-0"]
[WhiteElo "2561"]
[BlackElo "2162"]
[TimeControl "180+1"]
[EndTime "15:28:42 PST"]
[Termination "FernandoArauzAlonso won on time"]

1. Nf3 {[%clk 0:02:54.3]} 1... d5 {[%clk 0:02:58.8]} 2. g3 {[%clk 0:02:53.6]}
2... c6 {[%clk 0:02:59.3]} 3. Bg2 {[%clk 0:02:52.8]} 3... h6 {[%clk 0:02:58.7]}
4. O-O {[%clk 0:02:52.2]} 4... Bf5 {[%clk 0:02:58.4]} 5. d3 {[%clk 0:02:51.8]}
5... Nf6 {[%clk 0:02:58.9]} 6. b3 {[%clk 0:02:48.3]} 6... e6 {[%clk 0:02:54.5]}
7. Bb2 {[%clk 0:02:48.5]} 7... Be7 {[%clk 0:02:54.6]} 8. Nbd2 {[%clk 0:02:47.8]}
8... O-O {[%clk 0:02:52.8]} 9. Qe1 {[%clk 0:02:48.2]} 9... a5 {[%clk 0:02:40.5]}
10. e4 {[%clk 0:02:47.2]} 10... Bh7 {[%clk 0:02:36.7]} 11. a4 {[%clk 0:02:36.7]}
11... Na6 {[%clk 0:02:35.4]} 12. Qe2 {[%clk 0:02:12]} 12... Nb4 {[%clk
0:02:29.5]} 13. Rac1 {[%clk 0:02:11.8]} 13... Na2 {[%clk 0:02:24.7]} 14. Ra1
{[%clk 0:02:11.6]} 14... Nb4 {[%clk 0:02:22.5]} 15. Rfc1 {[%clk 0:02:07.1]}
15... Re8 {[%clk 0:02:07.7]} 16. h4 {[%clk 0:01:50.3]} 16... Nd7 {[%clk
0:01:57.3]} 17. Ne1 {[%clk 0:01:41.6]} 17... Bf6 {[%clk 0:01:47.1]} 18. e5
{[%clk 0:01:37.5]} 18... Be7 {[%clk 0:01:46.8]} 19. f4 {[%clk 0:01:20.7]} 19...
f6 {[%clk 0:01:35.7]} 20. d4 {[%clk 0:01:18.6]} 20... fxe5 {[%clk 0:01:24.7]}
21. dxe5 {[%clk 0:01:18.8]} 21... Nc5 {[%clk 0:01:02.2]} 22. Bd4 {[%clk
0:01:08.2]} 22... Qd7 {[%clk 0:00:42.3]} 23. Qe3 {[%clk 0:01:02.1]} 23... Nba6
{[%clk 0:00:30.7]} 24. h5 {[%clk 0:01:00.3]} 24... Rf8 {[%clk 0:00:27]} 25. Nef3
{[%clk 0:00:34.3]} 25... Ne4 {[%clk 0:00:21.4]} 26. Nh4 {[%clk 0:00:32.9]} 26...
Nxd2 {[%clk 0:00:20.6]} 27. Qxd2 {[%clk 0:00:33.8]} 27... Bxh4 {[%clk 0:00:17]}
28. gxh4 {[%clk 0:00:32.8]} 28... Qf7 {[%clk 0:00:14.8]} 29. Rf1 {[%clk
0:00:29.8]} 29... Qxh5 {[%clk 0:00:13.4]} 30. Qf2 {[%clk 0:00:18.5]} 30... Rf7
{[%clk 0:00:13.1]} 31. Qg3 {[%clk 0:00:18.2]} 31... Qg6 {[%clk 0:00:12.9]} 32.
Kh2 {[%clk 0:00:16]} 32... Qxg3+ {[%clk 0:00:12.5]} 33. Kxg3 {[%clk 0:00:16.9]}
33... Raf8 {[%clk 0:00:12.2]} 34. Bb6 {[%clk 0:00:13.3]} 34... Nb4 {[%clk
0:00:11.9]} 35. c3 {[%clk 0:00:12.2]} 35... Nd3 {[%clk 0:00:11.8]} 36. Be3
{[%clk 0:00:11.1]} 36... g5 {[%clk 0:00:10.5]} 37. hxg5 {[%clk 0:00:09.7]} 37...
hxg5 {[%clk 0:00:10.7]} 38. fxg5 {[%clk 0:00:10.5]} 38... Rxf1 {[%clk
0:00:10.2]} 39. Rxf1 {[%clk 0:00:11.4]} 39... Rxf1 {[%clk 0:00:09.7]} 40. Bxf1
{[%clk 0:00:12.3]} 40... Nxe5 {[%clk 0:00:10.1]} 41. Bb6 {[%clk 0:00:10.9]}
41... Bc2 {[%clk 0:00:09.5]} 42. b4 {[%clk 0:00:09.1]} 42... Bxa4 {[%clk
0:00:09.2]} 43. bxa5 {[%clk 0:00:09.1]} 43... Nc4 {[%clk 0:00:08.4]} 44. Bc7
{[%clk 0:00:08.4]} 44... e5 {[%clk 0:00:06.7]} 45. Bxc4 {[%clk 0:00:07.2]} 45...
dxc4 {[%clk 0:00:05.9]} 46. Bxe5 {[%clk 0:00:07.6]} 46... Kf7 {[%clk 0:00:06.1]}
47. Kf4 {[%clk 0:00:07.5]} 47... Kg6 {[%clk 0:00:06.2]} 48. Bc7 {[%clk
0:00:06.4]} 48... Bb5 {[%clk 0:00:06.3]} 49. Bd8 {[%clk 0:00:06.7]} 49... Ba6
{[%clk 0:00:06.1]} 50. Ke5 {[%clk 0:00:07.2]} 50... Bb5 {[%clk 0:00:06.1]} 51.
Kd6 {[%clk 0:00:07.6]} 51... Ba6 {[%clk 0:00:06.5]} 52. Bf6 {[%clk 0:00:07.7]}
52... Kf7 {[%clk 0:00:06.5]} 53. Kc5 {[%clk 0:00:07.1]} 53... Kg6 {[%clk
0:00:07.4]} 54. Kb6 {[%clk 0:00:07.6]} 54... Kf7 {[%clk 0:00:07.6]} 55. Kc7
{[%clk 0:00:08]} 55... Kg6 {[%clk 0:00:07.8]} 56. Kd6 {[%clk 0:00:08.9]} 56...
Kf7 {[%clk 0:00:08.2]} 57. Ke5 {[%clk 0:00:09.8]} 57... Bb5 {[%clk 0:00:07.7]}
58. Kf4 {[%clk 0:00:10.7]} 58... c5 {[%clk 0:00:07.3]} 59. Kf5 {[%clk
0:00:11.6]} 59... Bd7+ {[%clk 0:00:07.1]} 60. Kf4 {[%clk 0:00:09.8]} 60... Kg6
{[%clk 0:00:06.9]} 61. Ke5 {[%clk 0:00:09]} 61... Bb5 {[%clk 0:00:06.4]} 62. Kd6
{[%clk 0:00:09]} 62... Bc6 {[%clk 0:00:06.4]} 63. Kxc5 {[%clk 0:00:09.4]} 63...
Bd7 {[%clk 0:00:03.4]} 64. Kxc4 {[%clk 0:00:09.6]} 64... Bc6 {[%clk 0:00:03.1]}
65. Kc5 {[%clk 0:00:10]} 65... Be4 {[%clk 0:00:03]} 66. c4 {[%clk 0:00:09.8]}
66... Kf7 {[%clk 0:00:03.5]} 67. Kd6 {[%clk 0:00:09.7]} 1-0

[Event "Late-Titled-Tuesday-Blitz-February-27-2024"]
[Site "Chess.com"]
[Date "2024.02.27"]
[Round "8"]
[White "IlanSchnaider"]
[Black "Peroncio"]
[Result "1-0"]
[WhiteElo "2701"]
[BlackElo "2429"]
[TimeControl "180+1"]
[EndTime "15:28:51 PST"]
[Termination "IlanSchnaider won on time"]

1. e4 {[%clk 0:03:00.9]} 1... c5 {[%clk 0:02:59.5]} 2. Nf3 {[%clk 0:02:59.8]}
2... d6 {[%clk 0:02:59.9]} 3. c3 {[%clk 0:02:57]} 3... Nf6 {[%clk 0:02:59.8]} 4.
Bd3 {[%clk 0:02:56.1]} 4... Nc6 {[%clk 0:02:59.8]} 5. O-O {[%clk 0:02:56.3]}
5... Bg4 {[%clk 0:03:00.1]} 6. h3 {[%clk 0:02:51.6]} 6... Bh5 {[%clk 0:03:00.1]}
7. Re1 {[%clk 0:02:46.3]} 7... e6 {[%clk 0:02:59.8]} 8. Bc2 {[%clk 0:02:29.7]}
8... Be7 {[%clk 0:02:48.2]} 9. d4 {[%clk 0:02:21.3]} 9... cxd4 {[%clk
0:02:46.5]} 10. cxd4 {[%clk 0:02:22.2]} 10... Bxf3 {[%clk 0:02:45.7]} 11. gxf3
{[%clk 0:02:22.7]} 11... O-O {[%clk 0:02:38.4]} 12. Nc3 {[%clk 0:02:17.9]} 12...
Re8 {[%clk 0:02:22.7]} 13. Be3 {[%clk 0:02:12.6]} 13... Nd7 {[%clk 0:02:14.3]}
14. a3 {[%clk 0:02:05.4]} 14... Bg5 {[%clk 0:02:12.5]} 15. Qd2 {[%clk
0:02:03.7]} 15... Bxe3 {[%clk 0:02:11.1]} 16. fxe3 {[%clk 0:02:03]} 16... Qh4
{[%clk 0:02:09.5]} 17. Kh2 {[%clk 0:01:56.2]} 17... Ne7 {[%clk 0:01:51.7]} 18.
Rg1 {[%clk 0:01:54.8]} 18... Nb6 {[%clk 0:01:48.3]} 19. Bd3 {[%clk 0:01:52.8]}
19... Rac8 {[%clk 0:01:45.9]} 20. Rg4 {[%clk 0:01:50.3]} 20... Qf6 {[%clk
0:01:43.4]} 21. Rag1 {[%clk 0:01:41.2]} 21... g6 {[%clk 0:01:43.3]} 22. e5
{[%clk 0:01:31.4]} 22... dxe5 {[%clk 0:01:35.9]} 23. Ne4 {[%clk 0:01:31.4]}
23... Qg7 {[%clk 0:01:36.5]} 24. Nd6 {[%clk 0:01:31.5]} 24... exd4 {[%clk
0:01:30.5]} 25. Nxe8 {[%clk 0:01:30.3]} 25... Rxe8 {[%clk 0:01:30.1]} 26. Rxd4
{[%clk 0:01:25.4]} 26... Ned5 {[%clk 0:01:20]} 27. Be4 {[%clk 0:01:21.1]} 27...
Rc8 {[%clk 0:01:14.7]} 28. Rc1 {[%clk 0:01:16.2]} 28... Rxc1 {[%clk 0:00:59.4]}
29. Qxc1 {[%clk 0:01:17.1]} 29... Qe5+ {[%clk 0:00:59.9]} 30. f4 {[%clk
0:00:55.7]} 30... Nxf4 {[%clk 0:00:54.4]} 31. Rd8+ {[%clk 0:00:53.7]} 31... Kg7
{[%clk 0:00:54.7]} 32. exf4 {[%clk 0:00:53.7]} 32... Qxe4 {[%clk 0:00:52.2]} 33.
Qc3+ {[%clk 0:00:54]} 33... Kh6 {[%clk 0:00:49.9]} 34. Qd2 {[%clk 0:00:53.2]}
34... Qf5 {[%clk 0:00:42]} 35. Rd4 {[%clk 0:00:40]} 35... Nd5 {[%clk 0:00:41.7]}
36. Kg3 {[%clk 0:00:34]} 36... Kg7 {[%clk 0:00:38.5]} 37. Qe2 {[%clk 0:00:28.2]}
37... Nf6 {[%clk 0:00:34]} 38. Qd3 {[%clk 0:00:19.1]} 38... Qc5 {[%clk
0:00:21.2]} 39. Qc3 {[%clk 0:00:14.8]} 39... Qb5 {[%clk 0:00:13.2]} 40. Rc4
{[%clk 0:00:08.4]} 40... Qd5 {[%clk 0:00:10.7]} 41. Qd4 {[%clk 0:00:05.2]} 41...
Qh1 {[%clk 0:00:09.3]} 42. Qf2 {[%clk 0:00:02.6]} 42... Nh5+ {[%clk 0:00:07.2]}
43. Kh4 {[%clk 0:00:03]} 43... Qd5 {[%clk 0:00:06.1]} 44. Qd4+ {[%clk
0:00:02.6]} 44... Qxd4 {[%clk 0:00:05.4]} 45. Rxd4 {[%clk 0:00:03.5]} 45... Nf6
{[%clk 0:00:04.5]} 46. Rb4 {[%clk 0:00:03.8]} 46... b6 {[%clk 0:00:04.7]} 47.
Rc4 {[%clk 0:00:03.8]} 47... Nd5 {[%clk 0:00:04.7]} 48. Kg3 {[%clk 0:00:04.2]}
48... Kf6 {[%clk 0:00:05.3]} 49. Rc8 {[%clk 0:00:03.6]} 49... Ke7 {[%clk
0:00:04]} 50. Rh8 {[%clk 0:00:03.6]} 50... h5 {[%clk 0:00:04.3]} 51. Ra8 {[%clk
0:00:03.9]} 51... a5 {[%clk 0:00:04.7]} 52. Ra7+ {[%clk 0:00:04.3]} 52... Kf6
{[%clk 0:00:05.2]} 53. Kf3 {[%clk 0:00:04.5]} 53... Kg7 {[%clk 0:00:04.6]} 54.
Rb7 {[%clk 0:00:04.9]} 54... Kf6 {[%clk 0:00:05.1]} 55. Ke4 {[%clk 0:00:04.8]}
55... Kg7 {[%clk 0:00:05.5]} 56. Ke5 {[%clk 0:00:05.3]} 56... h4 {[%clk
0:00:05.8]} 57. b3 {[%clk 0:00:03.5]} 57... Kg8 {[%clk 0:00:05.8]} 58. Kd6
{[%clk 0:00:02.2]} 58... Nxf4 {[%clk 0:00:05.8]} 59. Rxb6 {[%clk 0:00:02]} 59...
Nxh3 {[%clk 0:00:06.1]} 60. b4 {[%clk 0:00:02.4]} 60... axb4 {[%clk 0:00:06.1]}
61. Rxb4 {[%clk 0:00:03.3]} 61... g5 {[%clk 0:00:06.1]} 62. a4 {[%clk
0:00:03.6]} 62... Nf4 {[%clk 0:00:02.9]} 63. a5 {[%clk 0:00:04]} 63... h3 {[%clk
0:00:03.4]} 64. a6 {[%clk 0:00:04]} 64... h2 {[%clk 0:00:03.4]} 65. Rb1 {[%clk
0:00:04.3]} 65... g4 {[%clk 0:00:01.3]} 66. a7 {[%clk 0:00:04.4]} 66... g3
{[%clk 0:00:02.2]} 67. a8=Q+ {[%clk 0:00:05]} 67... Kg7 {[%clk 0:00:03.1]} 68.
Qf3 {[%clk 0:00:05.2]} 68... g2 {[%clk 0:00:01.9]} 69. Qg4+ {[%clk 0:00:03.7]}
1-0